bitfinex/quotes_SOLUSD_20251006
["timestamp","ask_amount","ask_price","bid_price","bid_amount"]
[1759794244671,0.2,233.04,233.03,34.37129296]
[1759794248601,0.2,233.05,233.03,39.38680727]
[1759794248985,0.2,233.05,233.03,39.17680727]
[1759794249218,0.2,233.05,233.03,34.37129296]
[1759794251610,0.2,233.05,233.04,20.8]
[1759794251786,0.2,233.05,233.04,50.86]
[1759794252098,0.92,233.05,233.04,50.86]
[1759794252308,0.92,233.05,233.04,55.15110882]
[1759794252904,0.92,233.05,233.04,50.86]
[1759794257524,4.29110882,233.04,233.0,4.80551431]
[1759794257715,2.15858392,233.03,232.95,4.29276668]
[1759794257900,0.72,233.02,232.99,20.8]
[1759794258208,0.72,233.01,233.0,30.06]
[1759794258385,0.66,233.01,233.0,30.06]
[1759794263209,4.95169744,233.01,232.9,11.46301591]
[1759794263397,2.09517055,233.0,232.94,30.06]
[1759794263592,0.66,232.99,232.94,30.06]
[1759794263819,0.66,232.98,232.94,30.06]
[1759794264002,0.66,232.97,232.94,30.06]
[1759794264317,0.66,232.96,232.94,30.06]
[1759794265397,4.2922232,232.98,232.94,30.06]
[1759794265622,0.66,233.0,232.94,30.06]
[1759794265805,0.66,233.0,232.94,30.27]
[1759794266724,0.66,233.0,232.95,19.51570266]
[1759794266899,0.66,233.0,232.96,30.06]
[1759794267097,4.29126231,233.04,232.96,30.06]
[1759794267309,0.66,233.01,232.96,30.06]
[1759794267721,0.66,233.0,232.96,30.06]
[1759794268022,0.66,233.0,232.97,4.29239816]
[1759794268210,0.66,233.0,232.98,50.86]
[1759794269822,0.66,233.0,232.98,55.15213529]
[1759794270618,0.2,233.05,232.98,55.15213529]
[1759794270931,0.66,232.99,232.98,50.86]
[1759794272625,4.2911268,233.04,232.98,55.15221392]
[1759794272828,0.66,233.01,232.98,55.15221392]
[1759794273023,0.66,233.03,232.98,55.15221392]
[1759794273231,4.2911268,233.04,232.98,55.15221392]
[1759794273534,0.66,233.02,232.98,55.15221392]
[1759794274033,0.66,233.01,232.98,55.15221392]
[1759794275134,0.2,233.05,232.98,55.15221392]
[1759794275135,4.49093869,233.05,232.98,55.15221392]
[1759794275315,0.66,233.01,232.98,55.15221392]
[1759794276736,0.71,233.04,232.98,55.15221392]
[1759794277838,0.71,233.03,232.98,55.15221392]
[1759794278313,0.2,233.05,232.98,66.09274872]
[1759794278511,0.91,233.05,232.98,66.09274872]
[1759794278716,0.91,233.05,232.98,70.58330862]
[1759794279639,0.71,233.04,232.98,59.85277382]
[1759794280826,0.71,233.04,232.98,59.64277382]
[1759794281735,0.71,233.04,232.98,70.37330862]
[1759794282121,0.71,233.03,232.98,55.15221392]
[1759794282323,0.71,233.02,232.98,55.15221392]
[1759794282549,0.71,233.04,232.98,55.15221392]
[1759794283313,0.71,233.04,232.98,55.36221392]
[1759794285237,0.2,233.05,232.98,55.36221392]
[1759794285443,0.2,233.05,232.99,0.21]
[1759794285640,0.2,233.05,233.0,30.06]
[1759794285838,0.71,233.04,233.0,30.06]
[1759794286549,2.65080895,233.01,232.97,30.06]
[1759794286841,0.71,233.0,232.97,30.06]
[1759794287047,0.71,233.02,232.97,30.06]
[1759794287348,0.71,233.01,232.97,30.06]
[1759794287542,0.71,233.0,232.97,30.06]
[1759794288934,0.7,233.02,232.97,30.06]
[1759794289138,4.99151331,233.02,232.97,30.06]
[1759794289444,0.7,233.01,232.97,30.06]
[1759794289627,0.7,233.0,232.97,30.06]
[1759794290424,0.7,233.04,232.98,0.21]
[1759794290946,0.7,233.04,232.97,34.35238129]
[1759794291148,0.7,233.03,232.97,34.35238129]
[1759794292031,4.99137551,233.03,232.97,34.35238129]
[1759794294261,0.7,233.03,232.97,34.35238129]
[1759794294438,4.29110882,233.04,232.97,34.35238129]
[1759794294748,0.7,233.03,232.97,34.35238129]
[1759794296251,0.7,233.02,232.97,30.06]
[1759794296456,15.01960829,233.03,232.97,30.06]
[1759794296457,3.35080895,233.01,232.97,30.06]
[1759794296631,3.35080895,233.0,232.97,30.06]
[1759794296961,0.7,232.99,232.97,30.06]
[1759794297257,0.7,232.98,232.97,30.06]
[1759794297430,2.65080895,233.01,232.97,30.06]
[1759794297630,0.7,233.0,232.97,30.06]
[1759794297831,0.7,232.99,232.97,30.06]
[1759794298043,0.7,232.98,232.97,30.06]
[1759794299455,4.99221392,232.98,232.97,30.06]
[1759794302255,7.64302287,232.98,232.97,30.06]
[1759794302458,9.07815048,232.98,232.97,30.06]
[1759794302660,9.07815048,232.98,232.84,0.21]
[1759794302661,19.80868528,232.98,232.84,0.21]
[1759794302957,2.65080895,232.94,232.88,20.8]
[1759794303161,1.43512761,232.93,232.89,30.06]
[1759794303342,0.7,232.97,232.89,30.06]
[1759794303343,0.7,232.92,232.89,30.06]
[1759794303742,4.99336852,232.92,232.89,30.06]
[1759794307735,0.7,232.96,232.89,30.27]
[1759794307940,0.7,233.01,232.92,20.8]
[1759794308156,0.2,233.05,232.96,20.8]
[1759794308157,0.7,233.03,232.96,20.8]
[1759794308362,0.7,233.03,232.97,30.08]
[1759794309152,4.9914412,233.03,232.97,30.08]
[1759794309350,4.9914412,233.03,232.97,34.37235945]
[1759794309549,4.9914412,233.03,232.97,30.08]
[1759794309870,0.7,233.02,232.97,30.08]
[1759794310074,4.78226014,233.01,232.97,30.08]
[1759794310251,3.35080895,233.0,232.97,30.08]
[1759794310446,0.7,232.99,232.97,30.08]
[1759794310646,4.7816757,232.98,232.93,30.08]
[1759794310847,2.13086675,232.97,232.94,30.08]
[1759794311050,4.29276668,232.95,232.94,30.08]
[1759794311252,7.64357563,232.95,232.94,30.08]
[1759794311869,4.99276668,232.95,232.94,30.08]
[1759794312648,7.64357563,232.95,232.94,30.08]
[1759794312869,2.1304095,232.95,232.85,0.21]
[1759794313049,4.2926596,232.96,232.88,4.50398951]
[1759794313376,4.2926596,232.96,232.89,20.8]
[1759794313671,0.7,232.95,232.9,30.1]
[1759794313841,0.7,232.94,232.9,30.1]
[1759794314047,0.7,232.93,232.9,30.1]
[1759794314247,2.65080895,232.94,232.9,30.1]
[1759794314248,0.7,232.92,232.9,30.1]
[1759794314646,2.65080895,232.94,232.9,30.1]
[1759794314878,0.7,232.93,232.9,30.1]
[1759794315060,0.7,232.92,232.9,30.1]
[1759794315266,0.7,232.91,232.9,30.1]
[1759794317384,4.99350392,232.91,232.9,30.1]
[1759794318160,4.29328917,232.93,232.9,30.1]
[1759794318361,4.95286399,232.95,232.9,30.1]
[1759794318759,0.66,232.94,232.9,30.1]
[1759794319187,4.95310513,232.94,232.9,30.1]
[1759794319683,0.66,232.93,232.9,30.1]
[1759794319880,0.66,232.92,232.9,30.1]
[1759794320259,6.94391408,232.94,232.9,30.1]
[1759794320260,4.29310513,232.94,232.9,30.1]
[1759794320459,0.66,232.93,232.9,30.1]
[1759794320674,0.66,232.92,232.9,30.1]
[1759794321074,7.60391408,232.94,232.9,30.1]
[1759794321377,4.29331959,232.92,232.9,30.1]
[1759794323055,4.95314607,232.93,232.9,30.1]
[1759794324485,7.60367387,232.95,232.9,30.31]
[1759794324692,0.66,232.94,232.9,30.1]
[1759794325398,4.29286492,232.95,232.9,30.1]
[1759794325600,0.66,232.97,232.91,0.21]
[1759794326383,0.66,232.97,232.9,34.39368338]
[1759794327296,4.95239824,232.97,232.9,34.39368338]
[1759794327605,4.95239824,232.97,232.9,34.60368338]
[1759794328180,4.95239824,232.97,232.9,30.31]
[1759794328373,2.35708567,232.96,232.9,30.1]
[1759794328687,4.29239824,232.97,232.9,30.1]
[1759794328688,0.66,232.95,232.9,30.1]
[1759794329486,0.66,232.94,232.9,30.1]
[1759794330285,4.29298738,232.94,232.9,30.1]
[1759794330791,0.66,232.93,232.9,30.1]
[1759794331094,0.66,232.97,232.9,34.60358798]
[1759794331290,0.66,232.97,232.9,30.31]
[1759794331492,0.66,232.96,232.9,30.1]
[1759794331697,0.66,232.95,232.9,30.1]
[1759794331999,0.66,232.94,232.9,30.1]
[1759794332200,4.95328174,232.93,232.9,30.1]
[1759794332995,4.29294734,232.95,232.9,30.1]
[1759794333194,4.95294734,232.95,232.9,30.1]
[1759794333393,0.66,232.94,232.9,30.1]
[1759794334899,4.95298225,232.94,232.9,30.1]
[1759794336203,4.97298225,232.94,232.9,30.1]
[1759794336697,0.68,232.93,232.9,30.1]
[1759794337071,4.29298225,232.94,232.9,30.1]
[1759794337300,0.68,232.92,232.9,30.1]
[1759794337490,0.68,232.91,232.9,30.1]
[1759794338298,4.97350392,232.91,232.9,30.1]
[1759794339007,0.68,232.91,232.9,30.1]
[1759794339682,0.68,232.96,232.9,30.1]
[1759794339878,1.43214218,232.95,232.9,30.31]
[1759794340103,25.89793443,233.0,232.9,30.31]
[1759794340104,0.68,232.97,232.9,30.31]
[1759794340302,4.29276668,232.95,232.9,30.31]
[1759794340479,4.29276668,232.95,232.9,30.1]
[1759794340480,2.11250721,232.94,232.9,30.1]
[1759794340683,0.68,232.94,232.9,30.1]
[1759794341083,0.68,232.93,232.9,30.1]
[1759794341396,0.68,232.92,232.9,30.1]
[1759794341580,0.68,232.91,232.9,30.1]
[1759794342391,4.97350392,232.91,232.9,30.1]
[1759794348311,4.29350392,232.91,232.9,30.1]
[1759794349211,4.96350392,232.91,232.9,30.1]
[1759794352915,18.82767589,232.91,232.79,0.21]
[1759794353230,1.69708567,232.83,232.78,30.08]
[1759794353513,17.13639923,232.82,232.78,30.08]
[1759794353688,2.10332648,232.81,232.78,30.08]
[1759794353889,0.67,232.8,232.78,30.08]
[1759794355109,0.67,232.79,232.78,30.08]
[1759794355900,4.29560777,232.8,232.78,30.08]
[1759794356106,4.96560777,232.8,232.78,30.08]
[1759794356303,0.67,232.79,232.78,30.08]
[1759794356823,4.29560777,232.8,232.78,30.08]
[1759794357123,4.96560777,232.8,232.78,30.08]
[1759794357801,10.73790911,232.82,232.78,30.08]
[1759794358002,2.09697855,232.81,232.78,30.08]
[1759794358213,0.67,232.81,232.78,30.08]
[1759794358408,0.67,232.8,232.78,30.08]
[1759794358608,0.67,232.79,232.78,30.08]
[1759794359008,4.96571716,232.79,232.78,30.08]
[1759794359608,4.96571716,232.79,232.77,0.2]
[1759794360604,4.29571716,232.79,232.77,0.2]
[1759794360809,0.67,232.78,232.77,0.2]
[1759794361216,10.73790911,232.82,232.77,0.2]
[1759794361404,10.87647521,232.84,232.77,0.2]
[1759794361405,0.67,232.81,232.77,0.2]
[1759794361922,21.47,232.86,232.78,0.21]
[1759794362104,1.42498636,232.85,232.79,30.1]
[1759794363429,4.9647947,232.84,232.79,30.1]
[1759794363611,0.67,232.83,232.79,30.1]
[1759794363813,0.67,232.82,232.79,30.1]
[1759794365226,10.73698677,232.84,232.79,30.1]
[1759794365407,0.67,232.83,232.79,30.1]
[1759794366108,0.67,232.82,232.79,30.1]
[1759794366312,4.29534813,232.81,232.79,30.1]
[1759794366500,4.29534813,232.81,232.77,0.2]
[1759794366707,0.67,232.8,232.77,0.2]
[1759794366926,0.67,232.79,232.77,0.2]
[1759794368831,4.2959017,232.78,232.77,0.2]
[1759794369428,6.66298737,232.78,232.77,0.2]
[1759794369662,17.53946258,232.78,232.77,1e-08]
[1759794369955,18.93925815,232.78,232.77,1e-08]
[1759794373909,4.2959017,232.78,232.77,1e-08]
[1759794374223,4.29571068,232.8,232.77,1e-08]
[1759794375520,0.67,232.8,232.77,1e-08]
[1759794375722,0.67,232.79,232.77,1e-08]
[1759794375926,10.73837034,232.81,232.77,1e-08]
[1759794376127,0.67,232.79,232.77,1e-08]
[1759794377737,17.40080414,232.81,232.77,1e-08]
[1759794377939,0.67,232.8,232.77,1e-08]
[1759794378353,0.71,232.79,232.77,1e-08]
[1759794379233,5.00534813,232.81,232.77,1e-08]
[1759794379614,0.71,232.8,232.77,1e-08]
[1759794379925,4.29571716,232.79,232.77,1e-08]
[1759794380138,5.99280283,232.79,232.77,1e-08]
[1759794380324,0.71,232.78,232.77,1e-08]
[1759794381339,5.0059017,232.78,232.77,1e-08]
[1759794384419,4.2959017,232.78,232.77,1e-08]
[1759794386239,4.29566779,232.8,232.77,1e-08]
[1759794386828,5.00566779,232.8,232.77,1e-08]
[1759794389430,4.29566779,232.8,232.77,1e-08]
[1759794390027,5.00566779,232.8,232.77,1e-08]
[1759794392250,4.29566779,232.8,232.77,1e-08]
[1759794392451,0.71,232.79,232.77,1e-08]
[1759794393054,23.45565459,232.78,232.77,1e-08]
[1759794393223,31.67647521,232.73,232.72,1e-08]
[1759794393423,31.67647521,232.73,232.71,0.2]
[1759794393424,20.8,232.69,232.66,0.2]
[1759794393724,2.65565459,232.67,232.66,0.2]
[1759794394135,3.36565459,232.67,232.66,0.2]
[1759794394449,4.76896444,232.67,232.66,0.2]
[1759794395529,9.06689713,232.67,232.66,0.2]
[1759794395729,5.70124254,232.67,232.66,0.2]
[1759794395930,4.29793269,232.67,232.66,0.2]
[1759794396149,5.00793269,232.67,232.66,0.2]
[1759794396326,6.41211453,232.67,232.66,0.2]
[1759794397428,5.00793269,232.67,232.66,0.2]
[1759794397645,2.65565459,232.68,232.66,0.2]
[1759794397646,4.29774805,232.68,232.66,0.2]
[1759794397831,0.67,232.67,232.66,0.2]
[1759794399649,4.96793269,232.67,232.66,0.2]
[1759794402146,4.29793269,232.67,232.66,0.2]
[1759794403062,4.29774798,232.68,232.66,0.2]
[1759794403373,0.67,232.67,232.66,0.2]
[1759794404468,4.29774798,232.68,232.66,0.2]
[1759794404766,4.96774798,232.68,232.66,0.2]
[1759794404968,4.29774798,232.68,232.66,0.2]
[1759794405268,0.67,232.67,232.66,0.2]
[1759794405471,18.36712607,232.69,232.66,0.2]
[1759794405679,0.67,232.68,232.66,0.2]
[1759794406675,4.29793269,232.67,232.66,0.2]
[1759794407173,10.87647521,232.71,232.66,0.2]
[1759794407174,10.74136037,232.75,232.66,0.81]
[1759794407471,14.06701496,232.75,232.66,0.81]
[1759794407673,1.40267461,232.74,232.66,0.81]
[1759794407868,0.67,232.73,232.66,0.81]
[1759794409277,4.29700928,232.72,232.66,0.81]
[1759794410149,0.67,232.76,232.67,0.61]
[1759794410557,4.96627083,232.76,232.67,0.61]
[1759794411973,15.70694792,232.76,232.67,4.90776303]
[1759794412170,0.67,232.75,232.67,4.90776303]
[1759794412370,15.03694792,232.76,232.66,21.0]
[1759794412371,17.69260251,232.76,232.66,21.0]
[1759794412669,3.32565459,232.74,232.66,0.2]
[1759794413172,0.67,232.74,232.66,0.2]
[1759794414176,15.03888625,232.73,232.66,0.2]
[1759794414481,0.67,232.72,232.66,0.2]
[1759794415388,4.29719393,232.71,232.66,0.2]
[1759794415569,4.96719393,232.71,232.66,0.2]
[1759794416084,10.87647521,232.7,232.66,0.2]
[1759794416269,13.5321298,232.67,232.66,0.2]
[1759794416467,10.87647521,232.63,232.62,0.2]
[1759794416665,14.93448314,232.63,232.62,0.2]
[1759794416872,15.60448314,232.63,232.62,0.2]
[1759794417694,19.90315485,232.63,232.62,0.2]
[1759794417893,19.90207256,232.63,232.62,0.2]
[1759794418266,18.50080151,232.63,232.62,0.2]
[1759794422688,18.50080151,232.63,232.62,1e-08]
[1759794422891,19.90012885,232.63,232.62,1e-08]
[1759794423292,18.50080151,232.63,232.62,1e-08]
[1759794424898,19.89948378,232.63,232.62,1e-08]
[1759794425267,18.50080151,232.63,232.62,1e-08]
[1759794432589,15.17514692,232.63,232.62,1e-08]
[1759794432910,15.84514692,232.63,232.62,1e-08]
[1759794434193,17.22183703,232.63,232.62,1e-08]
[1759794435205,19.87749162,232.63,232.62,1e-08]
[1759794436184,16.55183703,232.63,232.62,1e-08]
[1759794436590,17.22183703,232.63,232.62,1e-08]
[1759794438613,19.87749162,232.63,232.62,1e-08]
[1759794440712,16.55183703,232.63,232.62,1e-08]
[1759794441091,5.67536182,232.63,232.62,1e-08]
[1759794441416,4.29867171,232.63,232.62,1e-08]
[1759794442413,15.17496214,232.64,232.62,1e-08]
[1759794443393,4.29848693,232.64,232.62,1e-08]
[1759794445219,15.04417426,232.65,232.62,1e-08]
[1759794445420,1.38158091,232.64,232.62,1e-08]
[1759794445914,15.04417426,232.65,232.62,1e-08]
[1759794446120,15.04417426,232.65,232.63,0.61]
[1759794447209,10.74587209,232.65,232.63,0.61]
[1759794447815,4.29811742,232.66,232.64,0.61]
[1759794448020,4.29811742,232.66,232.65,0.61]
[1759794449124,10.74460839,232.68,232.65,0.61]
[1759794450213,10.74460839,232.68,232.62,1e-08]
[1759794450519,4.29737859,232.7,232.63,0.61]
[1759794450816,1.3827865,232.69,232.63,0.61]
[1759794451023,15.04082508,232.7,232.63,0.61]
[1759794453728,20.8,232.74,232.63,0.61]
[1759794453729,12.80485498,232.74,232.63,0.61]
[1759794453901,17.10150747,232.74,232.66,20.8]
[1759794454209,17.10150747,232.74,232.67,0.61]
[1759794454210,12.80485498,232.74,232.67,0.61]
[1759794454402,17.10151974,232.74,232.67,0.61]
[1759794454806,4.29666476,232.74,232.67,0.61]
[1759794455519,0.7,232.77,232.67,0.61]
[1759794455725,4.2959017,232.78,232.67,4.90791714]
[1759794455930,4.2959017,232.78,232.68,0.61]
[1759794455931,2.08269448,232.77,232.68,0.61]
[1759794456218,0.7,232.77,232.68,0.61]
[1759794456921,12.25867285,232.76,232.68,30.16]
[1759794457114,0.66,232.75,232.68,30.16]
[1759794457423,0.66,232.75,232.68,30.77]
[1759794458208,4.29664002,232.74,232.68,30.77]
[1759794463125,0.66,232.78,232.69,0.61]
[1759794463313,1.38145513,232.77,232.69,0.61]
[1759794464227,1.38145513,232.77,232.69,4.90741994]
[1759794464524,1.38145513,232.77,232.7,0.61]
[1759794465107,4.29627083,232.76,232.7,0.61]
[1759794465618,4.29627083,232.76,232.7,4.90737742]
[1759794465826,4.29627083,232.76,232.71,0.61]
[1759794466125,0.66,232.8,232.71,21.41]
[1759794466430,1.38080989,232.79,232.72,0.61]
[1759794466823,1.38080989,232.79,232.68,4.29764079]
[1759794467011,1.70175544,232.75,232.66,0.61]
[1759794467218,10.87647521,232.77,232.63,4.29867171]
[1759794467219,4.29682464,232.73,232.67,30.12]
[1759794467434,0.66,232.72,232.67,30.12]
[1759794467631,4.29682464,232.73,232.67,30.12]
[1759794467935,0.66,232.71,232.67,30.12]
[1759794468426,4.29737859,232.7,232.67,30.73]
[1759794468949,4.29700928,232.72,232.67,30.73]
[1759794469415,0.68,232.77,232.68,0.61]
[1759794470426,4.29627083,232.76,232.68,4.90762202]
[1759794470611,4.29627083,232.76,232.69,0.61]
[1759794470938,15.03694792,232.76,232.69,0.61]
[1759794471116,15.71694792,232.76,232.69,0.61]
[1759794472014,15.71694792,232.76,232.7,30.16]
[1759794472641,4.29627083,232.76,232.71,0.61]
[1759794473025,4.97627083,232.76,232.71,0.61]
[1759794474832,0.68,232.78,232.72,0.61]
[1759794475030,0.68,232.78,232.7,35.06735935]
[1759794476234,1.70175544,232.78,232.71,20.8]
[1759794476534,1.70175544,232.73,232.7,30.22]
[1759794476737,0.68,232.72,232.7,30.22]
[1759794477040,0.68,232.71,232.7,30.22]
[1759794478438,4.29700928,232.72,232.7,30.22]
[1759794478635,4.97700928,232.72,232.7,30.22]
[1759794479142,0.68,232.71,232.7,30.22]
[1759794480638,0.68,232.71,232.62,1e-08]
[1759794480639,10.87647521,232.7,232.62,1e-08]
[1759794480823,10.87647521,232.7,232.63,20.72]
[1759794480824,1.70175544,232.67,232.63,20.72]
[1759794481021,0.68,232.66,232.63,20.72]
[1759794481339,0.68,232.65,232.63,20.72]
[1759794481517,10.87647521,232.7,232.62,1e-08]
[1759794481518,0.68,232.64,232.62,1e-08]
[1759794481718,0.68,232.64,232.63,30.26]
[1759794482627,4.97848693,232.64,232.63,30.26]
[1759794485047,6.68024237,232.64,232.62,1e-08]
[1759794485255,12.57823065,232.63,232.62,1e-08]
[1759794485421,4.97848693,232.64,232.62,1e-08]
[1759794485624,0.68,232.63,232.62,1e-08]
[1759794487117,4.97867171,232.63,232.62,1e-08]
[1759794489834,17.237027,232.63,232.62,1e-08]
[1759794491837,10.74575542,232.65,232.62,1e-08]
[1759794492262,11.42575542,232.65,232.62,1e-08]
[1759794492638,0.68,232.64,232.62,1e-08]
[1759794493258,4.29867171,232.63,232.62,1e-08]
[1759794493566,4.97867171,232.63,232.62,1e-08]
[1759794495837,15.72405759,232.65,232.62,1e-08]
[1759794496169,4.29830217,232.65,232.62,1e-08]
[1759794496370,4.29830217,232.65,232.62,0.61000001]
[1759794496537,4.29830217,232.65,232.62,1e-08]
[1759794498181,4.29793269,232.67,232.62,1e-08]
[1759794498341,4.29793269,232.67,232.62,0.61000001]
[1759794498643,0.72,232.66,232.62,1e-08]
[1759794500354,4.29830217,232.65,232.62,1e-08]
[1759794502050,5.01830217,232.65,232.62,1e-08]
[1759794502368,0.72,232.67,232.62,1e-08]
[1759794502861,12.44547882,232.7,232.62,1e-08]
[1759794503070,0.72,232.66,232.62,1e-08]
[1759794503642,5.01756328,232.69,232.62,1e-08]
[1759794503858,1.38022084,232.68,232.63,0.61]
[1759794504064,5.01756328,232.69,232.63,0.61]
[1759794504875,4.29756328,232.69,232.63,0.61]
[1759794505079,5.0173328,232.71,232.63,0.61]
[1759794505249,5.0173328,232.71,232.64,20.8]
[1759794505450,0.72,232.74,232.68,20.8]
[1759794505765,0.72,232.77,232.69,0.61]
[1759794506166,0.72,232.77,232.69,4.90754663]
[1759794506677,0.72,232.77,232.69,4.29754663]
[1759794506873,21.61467378,232.82,232.7,21.41]
[1759794506874,10.87647521,232.81,232.7,21.41]
[1759794507181,0.72,232.77,232.71,30.2]
[1759794507861,0.72,232.77,232.71,34.49718239]
[1759794508474,5.01613231,232.77,232.71,34.49718239]
[1759794509873,4.29497916,232.83,232.74,20.8]
[1759794510070,4.29497916,232.83,232.75,0.61]
[1759794510270,5.01497916,232.83,232.75,0.61]
[1759794511462,0.72,232.83,232.76,4.29627083]
[1759794511672,5.01498799,232.83,232.77,30.2]
[1759794513560,5.01498799,232.83,232.77,30.81]
[1759794514167,4.29498799,232.83,232.77,30.81]
[1759794514370,5.01471257,232.85,232.78,0.61]
[1759794514962,15.75123823,232.85,232.77,30.2]
[1759794515157,0.72,232.84,232.78,30.18]
[1759794515361,0.72,232.83,232.78,30.18]
[1759794515561,0.72,232.83,232.73,20.8]
[1759794515562,0.72,232.82,232.72,0.61]
[1759794515756,0.72,232.82,232.73,30.2]
[1759794516054,0.72,232.81,232.71,21.41]
[1759794516268,0.67,232.8,232.72,51.0]
[1759794516474,0.67,232.79,232.72,51.0]
[1759794516678,0.67,232.78,232.72,51.0]
[1759794517177,4.29608626,232.77,232.72,51.0]
[1759794517577,4.96608626,232.77,232.72,51.0]
[1759794518279,4.96608626,232.77,232.72,51.61]
[1759794518665,4.96608626,232.77,232.72,21.41]
[1759794518866,4.96608626,232.77,232.73,30.18]
[1759794519060,0.67,232.79,232.73,30.18]
[1759794520583,10.87647521,232.74,232.68,30.16]
[1759794520784,0.67,232.73,232.68,30.16]
[1759794520983,0.67,232.72,232.68,30.16]
[1759794521186,0.67,232.71,232.68,30.16]
[1759794521689,0.67,232.75,232.68,30.16]
[1759794521869,4.96608626,232.77,232.69,0.61]
[1759794522589,15.7065467,232.77,232.69,0.61]
[1759794524371,4.96608626,232.77,232.69,4.90745621]
[1759794525891,4.96608626,232.77,232.7,4.90723133]
[1759794526092,0.67,232.76,232.68,30.16]
[1759794526594,0.67,232.75,232.68,30.16]
[1759794526795,0.67,232.74,232.68,30.16]
[1759794527195,0.67,232.73,232.67,20.8]
[1759794527373,0.67,232.73,232.68,30.28]
[1759794528283,0.72,232.72,232.68,30.28]
[1759794528697,10.74144808,232.75,232.68,30.28]
[1759794528871,0.72,232.74,232.69,30.28]
[1759794529286,0.72,232.74,232.7,30.26]
[1759794529500,0.72,232.74,232.71,30.26]
[1759794530367,4.29682464,232.73,232.71,30.26]
[1759794531600,4.29662971,232.75,232.71,30.26]
[1759794531801,0.72,232.74,232.71,30.26]
[1759794532380,4.29682464,232.73,232.71,30.26]
[1759794532895,4.29682464,232.73,232.72,30.24]
[1759794533599,10.87647521,232.72,232.59,0.61]
[1759794533796,2.65559601,232.65,232.63,8.42]
[1759794534002,2.65559601,232.66,232.63,8.42]
[1759794534188,0.72,232.65,232.63,8.42]
[1759794534706,3.37559601,232.67,232.63,8.42]
[1759794534892,4.29830217,232.65,232.63,8.42]
[1759794535496,5.01830217,232.65,232.63,8.42]
[1759794538709,4.29830217,232.65,232.63,8.42]
[1759794539606,5.01830217,232.65,232.63,8.42]
[1759794541605,4.29830217,232.65,232.63,8.42]
[1759794542193,4.29793269,232.67,232.63,8.42]
[1759794542382,142.47559601,232.8,232.64,0.61]
[1759794542592,9.05257716,232.73,232.64,0.61]
[1759794542788,18.41448226,232.73,232.64,0.61]
[1759794543180,2.65559601,232.72,232.64,0.61]
[1759794543591,15.75888625,232.73,232.66,20.8]
[1759794543799,15.75888625,232.73,232.66,21.41]
[1759794548208,5.01682464,232.73,232.67,0.61]
[1759794548799,5.01682464,232.73,232.66,20.8]
[1759794552313,5.01682464,232.73,232.67,30.24]
[1759794553991,4.29682464,232.73,232.68,0.61]
[1759794554301,5.01682464,232.73,232.68,0.61]
[1759794554504,0.72,232.72,232.67,30.24]
[1759794556216,4.29719393,232.71,232.68,30.22]
[1759794556710,0.72,232.7,232.68,30.22]
[1759794556901,3.37559601,232.69,232.62,1e-08]
[1759794557109,0.72,232.69,232.63,30.22]